bitfinex/quotes_ETHUSD_20250616
["timestamp","ask_amount","ask_price","bid_price","bid_amount"]
[1750085113100,4.58174748,2646.6,2646.0,8.362]
[1750085113101,40.0,2646.3,2646.0,8.362]
[1750085113340,33.77888084,2646.3,2646.1,6.54]
[1750085113651,30.0,2646.0,2645.9,1.822]
[1750085113955,30.0,2646.3,2645.9,8.362]
[1750085114157,30.0,2646.3,2646.1,3.77901862]
[1750085114334,30.0,2646.5,2646.2,6.54]
[1750085114852,10.0,2646.7,2646.4,3.77871825]
[1750085115078,0.55,2646.6,2646.5,6.54]
[1750085115199,30.55,2646.6,2646.5,6.54]
[1750085115628,40.0,2646.4,2646.2,5.60093011]
[1750085115847,30.0,2646.5,2646.3,6.539]
[1750085116047,30.0,2646.8,2646.4,3.77871825]
[1750085116252,30.0,2646.7,2646.4,8.361]
[1750085116450,30.0,2646.6,2646.4,8.361]
[1750085116617,30.0,2646.7,2646.4,8.361]
[1750085117015,30.0,2646.7,2646.4,12.13971689]
[1750085117219,30.0,2646.7,2646.4,8.361]
[1750085117444,30.0,2646.3,2646.1,3.77908285]
[1750085117638,30.0,2646.4,2646.2,8.36]
[1750085117837,35.08571825,2646.4,2646.3,6.538]
[1750085118157,40.0,2646.1,2645.9,1.822]
[1750085118480,30.0,2646.3,2646.0,6.538]
[1750085118664,3.25285964,2646.7,2646.0,6.538]
[1750085118665,0.55,2646.6,2646.2,3.77900385]
[1750085118877,0.55,2646.6,2645.9,1.822]
[1750085118878,0.55,2646.6,2646.3,6.537]
[1750085119070,30.0,2646.5,2646.3,6.537]
[1750085119202,30.0,2646.5,2646.3,10.31578568]
[1750085119908,30.0,2646.5,2646.4,3.77871825]
[1750085120126,0.7705,2646.8,2646.4,3.77871825]
[1750085120127,30.0,2646.7,2646.5,3.77853769]
[1750085120352,0.55,2646.7,2646.6,6.537]
[1750085120592,30.55,2646.7,2646.6,6.537]
[1750085121469,33.72021924,2646.7,2646.6,6.537]
[1750085121689,30.0,2647.0,2646.9,3.77800445]
[1750085121868,1.60917682,2647.5,2647.4,3.77729092]
[1750085122162,31.60917682,2647.5,2647.4,10.31329092]
[1750085122860,1.60917682,2647.5,2647.4,10.31329092]
[1750085124157,30.0,2647.3,2647.2,5.5985763]
[1750085124358,3.17979768,2647.3,2647.2,12.1325763]
[1750085124562,40.0,2647.4,2647.3,3.77743361]
[1750085124762,30.0,2647.4,2647.3,3.77743361]
[1750085124929,1.60917682,2647.5,2647.4,3.77729092]
[1750085126437,2.65016001,2647.5,2647.4,6.532]
[1750085126642,36.46520655,2647.5,2647.4,6.532]
[1750085128039,35.97422336,2647.5,2647.4,6.532]
[1750085128277,35.97422336,2647.5,2647.4,10.30929092]
[1750085129588,35.97422336,2647.5,2647.4,6.532]
[1750085129883,40.0,2647.3,2647.1,3.77762936]
[1750085130091,30.0,2647.3,2647.2,8.342]
[1750085130289,40.0,2647.1,2646.9,1.812]
[1750085130468,30.0,2647.0,2646.9,5.59000445]
[1750085130774,30.55,2647.2,2647.1,3.77760571]
[1750085130961,30.0,2647.3,2647.2,3.7775763]
[1750085131163,0.1888,2647.1,2646.6,13.2633]
[1750085131336,0.1888,2647.1,2647.0,3.77784217]
[1750085131539,30.55,2647.3,2647.0,10.30684217]
[1750085131774,30.0,2647.2,2647.0,10.30684217]
[1750085132077,0.1888,2647.0,2646.9,5.58997246]
[1750085132279,30.1888,2647.0,2646.9,12.11897246]
[1750085133478,30.1888,2647.0,2646.9,12.89377246]
[1750085133958,30.1888,2647.0,2646.9,12.11897246]
[1750085135370,0.1888,2647.0,2646.9,12.11897246]
[1750085136362,1.60917682,2647.5,2647.4,4.54069092]
[1750085136564,1.60917682,2647.5,2647.4,11.06669092]
[1750085136764,1.60917682,2647.5,2647.4,21.06669092]
[1750085139047,1.60917682,2647.5,2647.4,22.87669092]
[1750085140085,0.02,2647.9,2647.8,14.53932029]
[1750085140292,0.02,2647.9,2647.8,22.89493648]
[1750085142064,0.02,2647.9,2647.8,35.58793648]
[1750085143252,0.02,2648.9,2648.8,4.54309447]
[1750085143468,0.02,2648.9,2648.8,3.77529447]
[1750085143786,0.02,2648.9,2648.8,12.10729447]
[1750085144492,0.02,2648.9,2648.8,23.77234537]
[1750085145383,0.02,2648.9,2648.8,22.10529447]
[1750085145971,0.02,2648.9,2648.8,34.94363888]
[1750085146372,0.02,2648.9,2648.8,23.12179447]
[1750085147074,0.02,2648.9,2648.8,14.79179447]
[1750085147274,0.02,2648.9,2648.8,23.12079447]
[1750085147580,0.02,2648.9,2648.8,25.81041537]
[1750085147782,0.02,2648.9,2648.8,37.82025978]
[1750085148204,0.66666667,2649.2,2649.1,3.77486693]
[1750085148367,0.66666667,2649.2,2649.1,33.16564439]
[1750085148560,0.66666667,2649.2,2649.1,26.61191134]
[1750085148860,0.66666667,2649.2,2649.1,26.74411347]
[1750085150512,0.66666667,2649.2,2649.1,18.41711347]
[1750085150874,0.66666667,2649.2,2649.1,26.74211347]
[1750085152116,0.66666667,2649.2,2649.1,18.41711347]
[1750085152320,0.66666667,2649.2,2649.1,26.74111347]
[1750085154020,0.66666667,2649.2,2649.1,31.44111347]
[1750085155288,0.49063351,2649.2,2649.1,31.44111347]
[1750085155487,0.02,2649.9,2649.8,14.54716972]
[1750085155688,0.02,2649.9,2649.8,22.86816972]
[1750085156984,0.02,2649.9,2649.8,14.54716972]
[1750085157184,0.02,2649.9,2649.8,12.09286972]
[1750085157495,0.02,2649.9,2649.8,34.10271413]
[1750085157817,0.02,2649.9,2649.8,36.69633032]
[1750085158406,0.02,2649.9,2649.8,36.88433032]
[1750085160127,0.02,2649.9,2649.8,18.16848591]
[1750085160336,0.02,2649.9,2649.8,24.67648591]
[1750085160895,0.02,2649.9,2649.8,16.36748591]
[1750085161233,0.02,2649.9,2649.8,22.08186972]
[1750085163933,0.02,2649.9,2649.8,12.08186972]
[1750085166325,0.02,2649.9,2649.8,5.57486972]
[1750085166547,0.02,2649.9,2649.8,12.07886972]
[1750085167400,0.02,2649.9,2649.8,10.27686972]
[1750085167600,0.02,2649.9,2649.7,3.77390878]
[1750085167601,30.0,2649.8,2649.7,3.77390878]
[1750085168044,30.0,2649.8,2649.7,10.27690878]
[1750085168602,30.0,2649.8,2649.4,10.877]
[1750085168810,30.0,2649.8,2649.2,10.7636]
[1750085168811,33.77401514,2649.7,2649.2,5.57565799]
[1750085169045,0.7584,2649.5,2649.2,1.801]
[1750085169209,30.0,2649.4,2649.3,6.502]
[1750085169421,33.13084,2649.4,2649.3,6.502]
[1750085169729,33.77458196,2649.3,2649.2,1.801]
[1750085170041,36.02144889,2649.3,2649.2,1.801]
[1750085170242,30.55,2649.2,2648.6,5.57646409]
[1750085170450,0.797,2649.0,2648.6,5.57651444]
[1750085170613,0.797,2649.0,2648.7,10.27737722]
[1750085170614,30.0,2648.9,2648.7,10.27737722]
[1750085170818,30.0,2648.9,2648.7,6.502]
[1750085171014,30.0,2648.9,2648.7,10.27743358]
[1750085171444,30.0,2648.9,2648.7,6.502]
[1750085171643,0.797,2649.0,2648.7,10.27737195]
[1750085171644,26.82477,2648.8,2648.7,10.27737195]
[1750085172044,26.82477,2648.9,2648.7,10.27737195]
[1750085172554,26.82477,2649.1,2649.0,3.77497034]
[1750085172853,26.82477,2649.2,2649.0,6.502]
[1750085173219,26.82477,2649.2,2649.1,3.77486693]
[1750085173422,0.55,2649.3,2649.0,6.502]
[1750085173423,26.82477,2649.3,2649.2,3.77472444]
[1750085173627,26.82477,2649.3,2648.7,3.775437]
[1750085173628,0.188,2649.1,2648.7,3.775437]
[1750085173852,36.82477,2649.2,2648.9,3.77511495]
[1750085174068,26.82477,2648.8,2648.1,4.7]
[1750085174217,10.7917,2649.0,2648.4,8.302]
[1750085174218,26.82477,2648.9,2648.4,8.302]
[1750085174420,26.82477,2648.9,2648.7,3.77529536]
[1750085174672,26.82477,2648.8,2648.4,5.57681528]
[1750085174884,26.82477,2648.8,2648.5,10.27664517]
[1750085175157,26.82477,2648.7,2648.4,1.801]
[1750085175360,26.82477,2648.8,2648.6,6.501]
[1750085175662,26.82477,2648.8,2648.7,6.5]
[1750085176533,30.60006447,2648.8,2648.7,6.5]
[1750085176735,34.3929103,2648.8,2648.7,6.5]
[1750085177031,30.6002079,2648.7,2648.3,10.873]
[1750085177363,36.82477,2648.5,2648.4,6.499]
[1750085177562,26.82477,2648.5,2648.4,6.499]
[1750085177938,26.82477,2648.5,2648.3,12.674]
[1750085178141,30.60052048,2648.5,2648.3,10.873]
[1750085178345,30.60052048,2648.5,2647.9,1.801]
[1750085178346,36.82477,2648.2,2647.9,1.801]
[1750085178539,26.82477,2648.2,2647.9,1.801]
[1750085178755,26.82477,2648.2,2648.0,6.499]
[1750085178955,26.82477,2648.2,2647.9,1.801]
[1750085178956,26.82477,2648.1,2647.9,1.801]
[1750085179141,31.24306804,2648.0,2647.9,1.801]
[1750085179474,35.01950308,2648.0,2647.9,8.3]
[1750085179762,31.24306804,2648.0,2647.9,8.3]
[1750085180529,35.01950308,2648.0,2647.9,1.801]
[1750085180730,35.01950308,2648.0,2647.9,8.3]
[1750085181228,31.24306804,2648.0,2647.9,8.3]
[1750085182251,35.01950308,2648.0,2647.9,6.499]
[1750085182436,0.55,2647.8,2647.2,14.65453858]
[1750085182640,37.63567,2647.6,2647.3,6.499]
[1750085182860,26.82477,2647.5,2647.3,6.499]
[1750085183442,0.7765,2648.2,2647.3,0.81307301]
[1750085183751,26.82477,2648.5,2647.9,0.7753]
[1750085183953,26.82477,2648.7,2648.2,3.77606524]
[1750085184163,0.7765,2648.8,2648.3,6.499]
[1750085184164,26.82477,2648.4,2648.3,6.499]
[1750085184463,26.82477,2648.5,2648.3,6.499]
[1750085184641,26.82477,2648.5,2648.3,10.27500144]
[1750085184845,26.82477,2648.7,2648.3,6.499]
[1750085185046,26.82477,2648.6,2648.3,6.499]
[1750085185448,30.60035097,2648.6,2648.3,6.499]
[1750085185783,10.0,2650.1,2649.8,3.77386972]
[1750085185946,10.0,2650.7,2649.8,12.07386972]
[1750085186276,1.70245551,2650.9,2649.8,8.3]
[1750085186277,0.33471879,2649.9,2649.8,8.3]
[1750085186466,27.15948879,2649.9,2649.8,12.07386972]
[1750085186666,26.84477,2649.9,2649.8,12.07386972]
[1750085186843,26.82477,2649.8,2649.1,0.7645]
[1750085187178,0.55,2649.7,2649.3,3.77457269]
[1750085187378,27.37477,2649.5,2649.4,6.498]
[1750085187581,10.0,2649.3,2649.0,10.88]
[1750085187891,26.82477,2649.4,2649.1,6.498]
[1750085188178,26.82477,2649.8,2649.5,3.77421064]
[1750085188386,26.82477,2649.8,2649.6,10.27209805]
[1750085188690,26.82477,2649.8,2649.6,6.498]
[1750085188883,26.82477,2649.8,2649.4,3.7743383]
[1750085189093,26.82477,2649.8,2649.5,6.498]
[1750085189385,26.82477,2649.8,2649.5,10.27223557]
[1750085189588,26.82477,2649.8,2649.6,3.7741411]
[1750085189763,26.82477,2649.8,2649.6,3.77415458]
[1750085190482,2.704477,2649.9,2649.7,3.77401215]
[1750085190656,26.82477,2649.8,2649.7,3.77401215]
[1750085190863,26.82477,2649.8,2649.7,10.27101215]
[1750085191796,0.02,2649.9,2649.8,3.77386972]
[1750085192762,0.02,2649.9,2649.7,10.27096462]
[1750085192960,0.02,2649.9,2649.8,3.77386972]
[1750085193160,0.02,2649.9,2649.7,6.497]
[1750085193392,26.82477,2649.8,2649.7,6.497]
[1750085193591,26.82477,2649.8,2649.1,2.29549044]
[1750085193592,4.32402905,2649.7,2649.1,13.77472646]
[1750085193794,36.82477,2649.4,2649.0,12.673]
[1750085193950,10.0,2649.1,2649.0,1.793]
[1750085194149,3.77446439,2649.4,2649.0,1.793]
[1750085194150,31.14948581,2649.3,2649.0,1.793]
[1750085194376,27.37477,2649.2,2649.1,6.495]
[1750085194581,30.86716502,2649.2,2649.1,6.495]
[1750085194779,26.82477,2649.1,2649.0,1.793]
[1750085194976,26.82477,2649.1,2649.0,8.288]
[1750085196392,26.82477,2649.1,2649.0,6.495]
[1750085196594,31.92114378,2649.1,2649.0,6.495]
[1750085196891,31.92114378,2649.1,2648.4,1.793]
[1750085196892,26.82477,2648.8,2648.4,1.793]
[1750085197082,26.82477,2648.8,2648.5,6.495]
[1750085197083,0.55,2648.8,2648.5,6.495]
[1750085197260,26.82477,2648.7,2648.5,6.495]
[1750085197661,26.82477,2648.7,2648.0,0.7795]
[1750085197662,0.55,2648.6,2648.3,3.77593116]
[1750085197879,26.82477,2648.7,2648.4,6.494]
[1750085198191,26.82477,2648.5,2648.2,1.793]
[1750085198395,36.82477,2648.3,2648.0,1.793]
[1750085198559,26.82477,2648.3,2648.0,1.793]
[1750085198754,26.82477,2648.3,2647.9,10.878]
[1750085199092,3.77616928,2648.2,2648.0,6.495]
[1750085199293,14.32477,2648.1,2648.0,6.495]
[1750085199853,3.77600767,2648.3,2648.0,6.495]
[1750085200079,14.32477,2648.2,2648.0,6.495]
[1750085200677,4.32594013,2648.4,2648.0,6.495]
[1750085200678,14.32477,2648.3,2648.0,6.495]
[1750085200989,18.10081186,2648.3,2648.0,6.495]
[1750085201197,14.32477,2648.2,2648.0,6.495]
[1750085201498,0.7967,2649.2,2648.9,3.77508409]
[1750085201713,14.32477,2649.2,2649.0,6.494]
[1750085202079,14.32477,2649.2,2648.4,0.7502]
[1750085202080,14.32477,2649.1,2648.4,0.7502]
[1750085202270,28.10005348,2648.9,2648.5,8.287]
[1750085202469,28.10005348,2648.9,2648.2,3.77609968]
[1750085202470,18.09998601,2648.9,2648.6,6.494]
[1750085202671,14.87477,2648.7,2648.2,3.77614983]
[1750085202872,14.32477,2648.6,2648.3,3.77600023]
[1750085203074,14.32477,2648.6,2647.9,0.7502]
[1750085203075,14.32477,2648.6,2648.4,10.26983683]
[1750085203275,14.32477,2648.6,2648.4,6.494]
[1750085203699,14.32477,2648.6,2648.4,10.26984393]
[1750085204208,14.32477,2648.6,2648.4,6.494]
[1750085204599,14.32477,2648.5,2648.2,1.794]
[1750085204800,14.32477,2648.5,2648.3,6.494]
[1750085204970,0.55,2648.5,2647.9,0.7502]
[1750085205174,24.32477,2648.2,2648.0,8.288]
[1750085205385,14.32477,2648.2,2648.1,6.494]
[1750085205991,14.32477,2648.2,2647.7,3.77678149]
[1750085205992,0.55,2648.1,2647.3,0.8297]
[1750085206252,14.32477,2648.0,2647.4,8.288]
[1750085206547,0.1888,2647.6,2647.5,4.72668441]
[1750085206688,10.0,2648.6,2648.1,3.77627528]
[1750085206893,14.32477,2648.6,2648.2,10.26908118]
[1750085207295,1.3419,2648.8,2648.2,10.26908118]
[1750085207296,14.32477,2648.5,2648.2,6.493]
[1750085207542,10.55,2648.6,2648.2,10.26913585]
[1750085207761,14.32477,2648.5,2648.3,3.77593021]
[1750085208295,14.32477,2648.7,2648.3,3.77600568]
[1750085208596,14.32477,2648.7,2648.4,3.77586467]
[1750085208791,14.32477,2648.7,2648.3,3.77594863]
[1750085209020,14.32477,2648.7,2648.4,3.77586385]
[1750085209420,4.56726544,2648.8,2648.2,10.26912655]
[1750085209421,0.188,2648.4,2648.2,6.493]
[1750085209623,24.32477,2648.6,2648.3,3.77600724]
[1750085209943,14.32477,2648.6,2648.3,3.77600724]
[1750085210296,14.32477,2648.6,2648.2,11.09779727]
[1750085210516,14.32477,2648.6,2648.3,3.77593106]
[1750085211129,0.1888,2648.3,2648.2,11.09784983]
[1750085211339,0.1888,2648.3,2648.2,6.493]
[1750085211507,14.51357,2648.3,2648.2,6.493]
[1750085212135,14.51357,2648.3,2648.2,10.26914983]
[1750085212345,0.1888,2648.3,2648.2,10.26914983]
[1750085212555,0.1888,2648.3,2648.2,11.85309155]
[1750085213235,0.1888,2648.3,2648.2,8.07694172]
[1750085213456,0.1888,2648.3,2648.2,10.26914983]
[1750085214522,0.1888,2648.3,2648.2,11.04314983]
[1750085215361,14.32477,2649.0,2648.7,3.77538102]
[1750085215664,14.32477,2649.0,2648.8,6.491]
[1750085216363,14.32477,2649.0,2648.8,10.2662664]
[1750085216534,14.32477,2649.0,2648.8,11.84979019]
[1750085216711,0.188,2648.9,2648.8,8.07456474]
[1750085216912,0.188,2648.9,2648.8,11.84985921]
[1750085217446,0.188,2648.9,2648.8,10.26629447]
[1750085219243,0.188,2648.9,2648.8,11.02019447]
[1750085219555,0.188,2649.3,2649.2,3.77472444]
[1750085219850,0.188,2649.3,2649.2,12.05772444]
[1750085220053,0.188,2649.3,2649.2,14.0184807]
[1750085220566,14.32477,2649.2,2648.8,4.5291322]
[1750085220774,14.32477,2649.2,2648.9,6.489]
[1750085220775,3.77483879,2649.2,2648.9,6.489]
[1750085220934,1.3127,2649.0,2648.8,1.793]
[1750085221259,1.3127,2649.0,2648.5,3.77572056]
[1750085221260,18.09992194,2648.9,2648.5,3.77572056]
[1750085221425,24.32477,2648.7,2648.3,12.669]
[1750085221628,24.32477,2648.5,2648.3,1.789]
[1750085221809,14.32477,2648.4,2648.3,1.789]
[1750085222217,18.65063467,2648.4,2648.3,1.789]
[1750085222415,24.32477,2648.2,2647.8,5.5656862]
[1750085222645,14.32477,2648.2,2647.9,12.05456818]
[1750085222957,14.32477,2648.2,2647.9,8.278]
[1750085223258,14.32477,2648.2,2648.0,6.489]
[1750085223259,14.32477,2648.1,2648.0,6.489]
[1750085223458,14.32477,2648.2,2648.0,6.489]
[1750085223631,14.32477,2648.2,2647.9,5.56550375]
[1750085223632,0.1888,2648.0,2647.9,1.789]
[1750085223815,14.51357,2648.0,2647.9,12.05457766]
[1750085224019,14.51357,2648.0,2647.9,1.789]
[1750085224217,18.29000504,2648.0,2647.9,1.789]
[1750085224522,14.51357,2648.0,2647.3,0.8049]
[1750085224780,14.32477,2647.4,2647.1,0.02]
[1750085225117,10.0,2647.2,2647.1,0.02]
[1750085225343,14.32477,2647.2,2647.1,6.508]
[1750085225556,18.6523463,2647.2,2647.1,0.02]
[1750085225756,21.79811225,2647.2,2647.1,0.02]
[1750085225947,31.79811225,2647.2,2647.1,0.02]
[1750085226321,32.57521225,2647.2,2647.1,0.02]
[1750085226858,22.57521225,2647.2,2647.1,0.02]
[1750085227450,22.57355547,2647.2,2647.1,0.02]
[1750085227651,18.79597917,2647.2,2647.1,0.02]
[1750085227850,14.87477,2647.2,2647.1,0.02]
[1750085228050,14.32477,2647.3,2647.1,0.02]
[1750085228280,14.32477,2647.7,2647.1,8.297]
[1750085228452,0.1888,2647.2,2647.1,12.07468838]
[1750085228639,0.1888,2647.2,2647.1,13.73519177]
[1750085228837,0.1888,2647.2,2647.1,9.95750339]
[1750085229074,0.1888,2647.2,2647.1,12.07471901]
[1750085229770,0.1888,2647.2,2647.1,8.297]
[1750085229971,0.1888,2647.2,2647.1,12.07471901]
[1750085230753,14.32477,2647.7,2647.4,3.77719148]
[1750085230973,14.32477,2647.7,2647.5,6.488]
[1750085231157,14.32477,2647.6,2647.5,6.488]
[1750085231382,14.32477,2647.7,2647.6,3.77700558]
[1750085231681,0.1888,2647.6,2647.5,10.26507395]
[1750085232865,0.55,2647.5,2647.1,0.02]
[1750085233067,14.51357,2647.3,2647.1,0.02]
[1750085233277,14.32477,2647.2,2647.1,0.02]
[1750085233578,18.1023463,2647.2,2647.1,6.508]
[1750085233747,18.6523463,2647.2,2647.1,0.02]
[1750085233942,4.3275763,2647.2,2647.1,0.02]
[1750085234144,18.6523463,2647.2,2647.1,0.02]
[1750085234945,14.32477,2647.2,2647.1,0.02]
[1750085235147,24.32477,2647.3,2647.2,3.77753103]
[1750085235361,14.51357,2647.2,2647.1,3.79765797]
[1750085235663,14.51357,2647.2,2647.1,0.02]
[1750085236061,14.51357,2647.2,2647.1,3.79771901]
[1750085236377,0.1888,2647.2,2647.1,4.90667091]
[1750085236565,0.1888,2647.2,2647.1,6.69667091]
[1750085237144,0.8201,2647.9,2647.6,3.77686882]
[1750085237489,4.67540613,2648.2,2647.1,1.1289519]
[1750085237490,3.77647619,2648.0,2647.1,1.1289519]
[1750085237702,14.32477,2647.5,2645.9,0.7791]
[1750085237867,10.55,2647.0,2646.1,6.691]
[1750085238226,0.55,2646.7,2646.6,3.7784327]
[1750085238391,14.32477,2647.2,2646.8,0.7791]
[1750085238611,24.32477,2647.3,2646.9,8.59]
[1750085238764,18.10218996,2647.4,2646.9,12.36796357]
[1750085239085,14.32477,2647.4,2646.8,0.7791]
[1750085239292,0.55,2647.3,2646.3,10.0]
[1750085239494,3.77759591,2647.2,2646.7,3.77828869]
[1750085239790,3.77759591,2647.2,2646.6,3.77836582]
[1750085239791,18.1023564,2647.2,2646.6,3.77836582]
[1750085239993,14.32477,2647.1,2646.8,8.601]
[1750085240378,0.55,2647.4,2646.9,8.598]
[1750085240587,14.32477,2647.3,2646.9,8.598]
[1750085240894,18.10263173,2647.0,2646.9,8.598]
[1750085241061,14.32477,2647.0,2646.9,8.595]
[1750085242103,0.55,2647.2,2646.9,8.593]
[1750085242285,18.10241974,2647.2,2646.9,8.593]
[1750085242596,14.32477,2647.0,2646.9,8.593]
[1750085243021,14.32477,2647.1,2646.9,8.593]
[1750085244567,14.32477,2647.3,2646.9,12.37092303]
[1750085244894,24.32477,2647.1,2646.9,8.593]
[1750085245107,2.96169232,2647.4,2646.9,8.593]
[1750085245108,14.32477,2647.0,2646.9,8.593]
[1750085245261,14.32477,2647.1,2646.9,8.593]
[1750085245992,14.32477,2647.3,2646.9,12.37099927]
[1750085246193,14.32477,2647.3,2646.9,8.593]
[1750085246762,24.32477,2647.1,2646.9,8.593]
[1750085246994,14.32477,2647.1,2646.9,8.593]
[1750085247192,14.32477,2647.2,2646.9,8.593]
[1750085247393,18.10241833,2647.2,2646.9,8.593]
[1750085247607,14.32477,2646.8,2646.7,3.77827387]
[1750085247775,0.1888,2646.8,2646.7,12.34327387]
[1750085247978,0.1888,2646.8,2646.7,13.9554433]
[1750085248585,0.1888,2646.8,2646.7,14.7236433]
[1750085250009,0.1888,2646.8,2646.7,8.557]
[1750085250173,0.1888,2646.8,2646.7,12.33528994]
[1750085250366,0.1888,2646.8,2646.7,8.557]
[1750085250611,0.1888,2646.8,2646.7,12.33528994]
[1750085251418,0.1888,2646.8,2646.6,3.77831415]
[1750085251580,0.1888,2646.8,2646.4,4.76298194]
[1750085251581,10.0,2646.9,2646.4,0.7955]
[1750085251781,0.1888,2646.6,2646.4,0.7955]
[1750085252103,0.1888,2646.6,2646.5,8.543]
[1750085252305,14.51357,2646.6,2646.5,8.543]
[1750085252496,0.1888,2646.6,2646.5,12.32157547]
[1750085253634,14.32477,2646.5,2646.1,0.7984]
[1750085253780,14.32477,2646.5,2646.3,3.77875823]
[1750085253985,0.1888,2646.3,2646.2,12.76164256]
[1750085254391,0.1888,2646.3,2646.2,4.22664256]
[1750085254811,0.1888,2646.3,2646.2,12.75664256]
[1750085255418,0.1888,2646.3,2646.2,4.22664256]
[1750085255602,0.1888,2646.3,2646.2,12.3039206]
[1750085256221,14.32477,2646.2,2646.1,0.02]
[1750085256719,15.22845842,2646.2,2646.1,0.02]
[1750085257216,14.32477,2646.2,2646.1,3.79914666]
[1750085257406,14.32477,2646.2,2646.1,6.65]
[1750085258441,14.32477,2646.3,2646.1,6.65]
[1750085258643,14.32477,2646.2,2646.1,6.65]
[1750085258857,14.32477,2646.5,2646.2,3.77899929]
[1750085259011,14.32477,2646.5,2646.2,3.77900385]
[1750085259941,14.32477,2646.5,2646.4,3.77871825]
[1750085260139,14.32477,2646.5,2646.4,13.09481825]
[1750085260339,14.32477,2647.0,2646.7,3.77818724]
[1750085260643,14.32477,2647.0,2646.9,3.77800445]
[1750085260855,6.02335074,2647.5,2646.8,6.62]
[1750085260856,0.7843,2647.5,2646.8,6.62]
[1750085261020,14.32477,2647.4,2647.1,3.77762046]
[1750085261226,14.32477,2647.4,2647.2,6.617]
[1750085261423,14.32477,2647.3,2647.2,10.39456915]
[1750085262136,0.8092,2647.8,2647.2,10.39456915]
[1750085262137,14.32477,2647.6,2647.2,10.39456915]
[1750085262334,14.32477,2647.5,2647.3,3.77742108]
[1750085262538,14.32477,2647.4,2647.2,10.39451912]
[1750085262847,14.32477,2647.4,2647.2,10.39455724]
[1750085263045,14.32477,2647.5,2647.3,3.77743361]
[1750085263209,14.32477,2647.6,2647.2,6.617]
[1750085263408,24.32477,2647.4,2647.3,6.608]
[1750085263612,15.22775279,2647.4,2647.3,6.608]
[1750085265661,18.10170429,2647.7,2647.3,6.608]
[1750085265863,15.22775279,2647.6,2647.3,6.608]
[1750085266028,14.32477,2647.5,2647.4,3.77725266]
[1750085266353,14.32477,2647.7,2647.4,3.77725266]
[1750085266554,14.32477,2647.7,2647.3,10.38536413]
[1750085266760,14.32477,2647.6,2647.0,3.77781136]
[1750085266960,14.32477,2647.2,2646.7,0.8178]
[1750085267133,14.32477,2647.2,2646.9,3.77789946]
[1750085267546,0.1888,2646.9,2646.8,6.593]
[1750085267862,0.1888,2646.9,2646.8,12.23314719]
[1750085268157,0.1888,2646.9,2646.7,1.855]
[1750085268358,12.81790615,2647.3,2646.8,6.597]
[1750085268359,14.32477,2647.0,2646.8,6.597]
[1750085268560,16.13502579,2646.9,2646.8,6.597]
[1750085268861,14.32477,2646.7,2646.6,5.63342551]
[1750085269061,14.32477,2646.7,2646.6,8.452]
[1750085269374,14.32477,2646.5,2646.4,1.855]
[1750085269558,14.32477,2646.9,2646.5,3.77856992]
[1750085269734,14.32477,2646.8,2646.5,3.77856992]
[1750085270129,0.90390219,2646.8,2646.7,3.77828994]
[1750085270348,14.32477,2647.1,2646.7,10.37128994]
[1750085270548,18.1023487,2647.2,2646.7,10.3712235]
[1750085270752,18.10265516,2647.0,2646.7,6.593]
[1750085270949,24.32477,2646.8,2646.7,6.593]
[1750085271136,14.32477,2647.0,2646.7,6.593]
[1750085271336,14.32477,2646.9,2646.7,10.37127918]
[1750085271729,14.32477,2647.0,2646.7,10.37127918]
[1750085271965,0.90385337,2647.1,2646.7,10.37127918]
[1750085272129,14.32477,2647.0,2646.7,6.593]
[1750085272337,14.32477,2646.9,2646.7,10.3712345]
[1750085272630,14.32477,2647.0,2646.7,10.3712345]
[1750085272838,14.32477,2646.9,2646.7,6.593]
[1750085273265,14.32477,2646.9,2646.7,10.37127827]
[1750085273462,14.32477,2647.0,2646.7,6.593]
[1750085273663,14.32477,2646.9,2646.5,3.77850338]
[1750085273844,14.32477,2646.6,2646.5,3.77850338]
[1750085274041,14.32477,2646.8,2646.6,3.77832811]
[1750085274227,0.1888,2646.6,2646.5,10.35757547]
[1750085275934,0.1888,2646.6,2646.5,6.579]
[1750085276134,14.32477,2646.5,2646.1,0.02]
[1750085276335,14.32477,2646.4,2646.1,3.79908328]
[1750085276530,14.32477,2646.4,2646.2,6.569]
[1750085277468,14.32477,2646.4,2646.2,10.34792041]
[1750085277849,14.32477,2646.4,2646.3,3.77886105]
[1750085278540,14.32477,2646.4,2646.2,10.34796769]
[1750085278973,14.32477,2646.4,2646.3,3.77886105]
[1750085279351,0.90385337,2646.5,2646.4,3.77871825]
[1750085279549,2.42284273,2646.6,2646.5,3.77857547]
[1750085279759,0.8197,2646.5,2646.1,0.02]
[1750085279954,14.32477,2646.5,2646.2,10.33493912]
[1750085280341,14.32477,2646.5,2646.3,10.33386105]
[1750085280674,14.32477,2646.4,2646.3,10.33386105]
[1750085280875,14.32477,2646.5,2646.4,3.77871825]
[1750085283444,14.32477,2646.5,2646.3,3.7788489]
[1750085283677,14.32477,2646.5,2646.4,6.547]
[1750085284359,14.32477,2646.5,2646.4,10.32571825]
[1750085284957,14.32477,2646.5,2646.4,3.77871825]
[1750085285147,2.42284273,2646.6,2646.5,3.77857547]
[1750085286075,2.61164273,2646.6,2646.5,3.77857547]
[1750085286257,2.42284273,2646.6,2646.5,3.77857547]
[1750085287603,2.42284273,2646.6,2646.5,3.81635714]
[1750085287803,2.42284273,2646.6,2646.5,4.82575714]